Workbook

Sheet Location Analysis
E12: Comp 1 | H12: Comp 2 | K12: Comp 3 | N12: Comp 4
B13: Building Name | E13: Hall Office Park II | H13: Legacy Town Center II | K13: One Legacy Circle | N13: The Tennyson
B15: Location Criteria | E15: Weight | H15: Weight | K15: Weight | N15: Weight
B16: Road System Quality | C16: 9 | E16: =C16 -> 9 | F16: 9 | H16: =C16 -> 9 | I16: 9 | K16: =C16 -> 9 | L16: 9 | N16: =C16 -> 9 | O16: 8
B17: Employment Centers | C17: 10 | E17: =C17 -> 10 | F17: 10 | H17: 10 | I17: 10 | K17: 10 | L17: 10 | N17: 10 | O17: 9
B18: Housing Characteristics | C18: 5 | E18: =C18 -> 5 | F18: 7 | H18: 5 | I18: 8 | K18: 5 | L18: 8 | N18: 5 | O18: 8
B19: Retail Centers | C19: 6 | E19: =C19 -> 6 | F19: 6 | H19: 6 | I19: 10 | K19: 6 | L19: 9 | N19: 6 | O19: 9
B20: Educational Facilities | C20: 2 | E20: 2 | F20: 1 | H20: 2 | I20: 1 | K20: 2 | L20: 1 | N20: 2 | O20: 2
B21: Recreational Facilities | C21: 3 | E21: 3 | F21: 8 | H21: 3 | I21: 8 | K21: 3 | L21: 8 | N21: 3 | O21: 7
B22: Health Services | C22: 2 | E22: 2 | F22: 3 | H22: 2 | I22: 3 | K22: 2 | L22: 3 | N22: 2 | O22: 3
B23: Population Density | C23: 7 | E23: 7 | F23: 9 | H23: 7 | I23: 9 | K23: 7 | L23: 9 | N23: 7 | O23: 9
B24: Population Growth | C24: 8 | E24: 8 | F24: 10 | H24: 8 | I24: 9 | K24: 8 | L24: 9 | N24: 8 | O24: 7
B25: Disposable Income | C25: 5 | E25: 5 | F25: 9 | H25: 5 | I25: 9 | K25: 5 | L25: 9 | N25: 5 | O25: 9
B26: Business and Professional Employees | C26: 10 | E26: 10 | F26: 10 | H26: 10 | I26: 10 | K26: 10 | L26: 10 | N26: 10 | O26: 10
B27: Managerial Employees | C27: 7 | E27: 7 | F27: 9 | H27: 7 | I27: 9 | K27: 7 | L27: 9 | N27: 7 | O27: 10
E28: 0 | H28: 0 | K28: 0 | N28: 0
E29: 0 | H29: 0 | K29: 0 | N29: 0
E32: =IF(F51=0,0,F51/SUM(E52:E65)) -> 5.291666667 | H32: =IF(I51=0,0,I51/SUM(H52:H65)) -> 5.466666667 | K32: =IF(L51=0,0,L51/SUM(K52:K65)) -> 5.416666667 | N32: =IF(O51=0,0,O51/SUM(N52:N65)) -> 5.175
E51: =SUM(C16:C29) -> 74 | F51: =SUM(F52:F65) -> 635 | H51: =SUM(H16:H29) -> 74 | I51: =SUM(I52:I65) -> 656 | K51: =SUM(K16:K29) -> 74 | L51: =SUM(L52:L65) -> 650 | N51: =SUM(N16:N29) -> 74 | O51: =SUM(O52:O65) -> 621
E52: =IF(C16>0,10,0) -> 10 | F52: =C16*F16 -> 81 | H52: =IF(H16>0,10,0) -> 10 | I52: =H16*I16 -> 81 | K52: =IF(K16>0,10,0) -> 10 | L52: =K16*L16 -> 81 | N52: =IF(N16>0,10,0) -> 10 | O52: =N16*O16 -> 72
E53: 10 | F53: 100 | H53: =IF(H17>0,10,0) -> 10 | I53: =H17*I17 -> 100 | K53: =IF(K17>0,10,0) -> 10 | L53: =K17*L17 -> 100 | N53: =IF(N17>0,10,0) -> 10 | O53: =N17*O17 -> 90
E54: 10 | F54: 35 | H54: 10 | I54: 40 | K54: 10 | L54: 40 | N54: 10 | O54: 40
E55: 10 | F55: 36 | H55: 10 | I55: 60 | K55: 10 | L55: 54 | N55: 10 | O55: 54
E56: 10 | F56: 2 | H56: 10 | I56: 2 | K56: 10 | L56: 2 | N56: 10 | O56: 4
E57: 10 | F57: 24 | H57: 10 | I57: 24 | K57: 10 | L57: 24 | N57: 10 | O57: 21
E58: 10 | F58: 6 | H58: 10 | I58: 6 | K58: 10 | L58: 6 | N58: 10 | O58: 6
E59: 10 | F59: 63 | H59: 10 | I59: 63 | K59: 10 | L59: 63 | N59: 10 | O59: 63
E60: 10 | F60: 80 | H60: 10 | I60: 72 | K60: 10 | L60: 72 | N60: 10 | O60: 56
E61: 10 | F61: 45 | H61: 10 | I61: 45 | K61: 10 | L61: 45 | N61: 10 | O61: 45
E62: 10 | F62: 100 | H62: 10 | I62: 100 | K62: 10 | L62: 100 | N62: 10 | O62: 100
E63: 10 | F63: 63 | H63: 10 | I63: 63 | K63: 10 | L63: 63 | N63: 10 | O63: 70
E64: 0 | F64: 0 | H64: 0 | I64: 0 | K64: 0 | L64: 0 | N64: 0 | O64: 0
E65: 0 | F65: 0 | H65: 0 | I65: 0 | K65: 0 | L65: 0 | N65: 0 | O65: 0

Sheet Building Analysis
E12: Comp 1 | H12: Comp 2 | K12: Comp 3 | N12: Comp 4
B13: Building Name | E13: ='Location Analysis'!E13:F13 -> Hall Office Park II | H13: ='Location Analysis'!H13:I13 -> Legacy Town Center II | K13: ='Location Analysis'!K13:L13 -> One Legacy Circle | N13: ='Location Analysis'!N13:O13 -> The Tennyson
B15: Building Criteria | E15: Weight | H15: Weight | K15: Weight | N15: Weight
B16: Accessibility to Major Road Systems | C16: 10 | E16: =C16 -> 10 | F16: 10 | H16: =C16 -> 10 | I16: 10 | K16: =C16 -> 10 | L16: 10 | N16: =C16 -> 10 | O16: 9
B17: Ingress & Egress with Traffic Signal | C17: 9 | E17: =C17 -> 9 | F17: 10 | H17: 9 | I17: 10 | K17: 9 | L17: 10 | N17: 9 | O17: 8
B18: Mass Transit Availability | C18: 6 | E18: 6 | F18: 2 | H18: 6 | I18: 2 | K18: 6 | L18: 2 | N18: 6 | O18: 2
B19: High Visibility | C19: 7 | E19: 7 | F19: 10 | H19: 7 | I19: 10 | K19: 7 | L19: 10 | N19: 7 | O19: 6
B20: Parking Configuration and Access | C20: 9 | E20: 9 | F20: 8 | H20: 9 | I20: 5 | K20: 9 | L20: 7 | N20: 9 | O20: 7
B21: Parking Availability | C21: 9 | E21: 9 | F21: 9 | H21: 9 | I21: 8 | K21: 9 | L21: 8 | N21: 9 | O21: 10
B22: Building Age | C22: 5 | E22: 5 | F22: 7 | H22: 5 | I22: 7 | K22: 5 | L22: 8 | N22: 5 | O22: 9
B23: Common Areas and Restrooms | C23: 9 | E23: 9 | F23: 9 | H23: 9 | I23: 9 | K23: 9 | L23: 9 | N23: 9 | O23: 9
B24: Passenger Elevators | C24: 9 | E24: 9 | F24: 9 | H24: 9 | I24: 9 | K24: 9 | L24: 9 | N24: 9 | O24: 9
B25: Floor Plate Design Flexibility | C25: 9 | E25: 9 | F25: 10 | H25: 9 | I25: 10 | K25: 9 | L25: 10 | N25: 9 | O25: 10
B26: Floor Plate Size | C26: 8 | E26: 8 | F26: 10 | H26: 8 | I26: 10 | K26: 8 | L26: 10 | N26: 8 | O26: 8
B27: Rentable/Usable Efficiency Ratio | C27: 7 | E27: 7 | F27: 8 | H27: 7 | I27: 8 | K27: 7 | L27: 8 | N27: 7 | O27: 8
B28: On-site Management | C28: 9 | E28: 9 | F28: 8 | H28: 9 | I28: 8 | K28: 9 | L28: 8 | N28: 9 | O28: 8
B29: On-site Security 24/7 | C29: 5 | E29: 5 | F29: 10 | H29: 5 | I29: 10 | K29: 5 | L29: 10 | N29: 5 | O29: 10
B30: On-site Deli / Restaurants | C30: 8 | E30: 8 | F30: 6 | H30: 8 | I30: 3 | K30: 8 | L30: 3 | N30: 8 | O30: 9
B31: On-site Fitness Facility | C31: 4 | E31: 4 | F31: 7 | H31: 4 | I31: 8 | K31: 4 | L31: 3 | N31: 4 | O31: 8
B32: On-site Conference Facility | C32: 5 | E32: 5 | F32: 8 | H32: 5 | I32: 8 | K32: 5 | L32: 7 | N32: 5 | O32: 8
B33: On-site Business Support Services | C33: 3 | E33: 3 | F33: 6 | H33: 3 | I33: 6 | K33: 3 | L33: 6 | N33: 3 | O33: 6
B34: After-hours Card Key Access | C34: 8 | E34: 8 | F34: 10 | H34: 8 | I34: 10 | K34: 8 | L34: 10 | N34: 8 | O34: 10
B35: High-speed Telecommunications/Fiber | C35: 10 | E35: 10 | F35: 10 | H35: 10 | I35: 10 | K35: 10 | L35: 10 | N35: 10 | O35: 10
B36: Loading Dock & Freight Elevator | C36: 6 | E36: 6 | F36: 9 | H36: 6 | I36: 9 | K36: 6 | L36: 9 | N36: 6 | O36: 9
B37: Compatibility of Neighboring Uses | C37: 8 | E37: 8 | F37: 10 | H37: 8 | I37: 10 | K37: 8 | L37: 10 | N37: 8 | O37: 10
E38: 0 | H38: 0 | K38: 0 | N38: 0
E39: 0 | H39: 0 | K39: 0 | N39: 0
E40: 0 | H40: 0 | K40: 0 | N40: 0
E43: =IF(F55=0,0,F55/SUM(E56:E80)) -> 6.445454545 | H43: =IF(I55=0,0,I55/SUM(H56:H80)) -> 6.190909091 | K43: =IF(L55=0,0,L55/SUM(K56:K80)) -> 6.181818182 | N43: =IF(O55=0,0,O55/SUM(N56:N80)) -> 6.290909091
E55: =SUM(C16:C40) -> 163 | F55: =SUM(F56:F80) -> 1418 | H55: =SUM(H16:H40) -> 163 | I55: =SUM(I56:I80) -> 1362 | K55: =SUM(K16:K40) -> 163 | L55: =SUM(L56:L80) -> 1360 | N55: =SUM(N16:N40) -> 163 | O55: =SUM(O56:O80) -> 1384
E56: =IF(C16>0,10,0) -> 10 | F56: =C16*F16 -> 100 | H56: =IF(H16>0,10,0) -> 10 | I56: =H16*I16 -> 100 | K56: =IF(K16>0,10,0) -> 10 | L56: =K16*L16 -> 100 | N56: =IF(N16>0,10,0) -> 10 | O56: =N16*O16 -> 90
E57: 10 | F57: 90 | H57: 10 | I57: 90 | K57: 10 | L57: 90 | N57: 10 | O57: 72
E58: 10 | F58: 12 | H58: 10 | I58: 12 | K58: 10 | L58: 12 | N58: 10 | O58: 12
E59: 10 | F59: 70 | H59: 10 | I59: 70 | K59: 10 | L59: 70 | N59: 10 | O59: 42
E60: 10 | F60: 72 | H60: 10 | I60: 45 | K60: 10 | L60: 63 | N60: 10 | O60: 63
E61: 10 | F61: 81 | H61: 10 | I61: 72 | K61: 10 | L61: 72 | N61: 10 | O61: 90
E62: 10 | F62: 35 | H62: 10 | I62: 35 | K62: 10 | L62: 40 | N62: 10 | O62: 45
E63: 10 | F63: 81 | H63: 10 | I63: 81 | K63: 10 | L63: 81 | N63: 10 | O63: 81
E64: 10 | F64: 81 | H64: 10 | I64: 81 | K64: 10 | L64: 81 | N64: 10 | O64: 81
E65: 10 | F65: 90 | H65: 10 | I65: 90 | K65: 10 | L65: 90 | N65: 10 | O65: 90
E66: 10 | F66: 80 | H66: 10 | I66: 80 | K66: 10 | L66: 80 | N66: 10 | O66: 64
E67: 10 | F67: 56 | H67: 10 | I67: 56 | K67: 10 | L67: 56 | N67: 10 | O67: 56
E68: 10 | F68: 72 | H68: 10 | I68: 72 | K68: 10 | L68: 72 | N68: 10 | O68: 72
E69: 10 | F69: 50 | H69: 10 | I69: =H29*I29 -> 50 | K69: 10 | L69: =K29*L29 -> 50 | N69: 10 | O69: =N29*O29 -> 50
E70: 10 | F70: 48 | H70: 10 | I70: 24 | K70: 10 | L70: 24 | N70: 10 | O70: 72
E71: 10 | F71: 28 | H71: 10 | I71: 32 | K71: 10 | L71: 12 | N71: 10 | O71: 32
E72: 10 | F72: 40 | H72: 10 | I72: 40 | K72: 10 | L72: 35 | N72: 10 | O72: 40
E73: 10 | F73: 18 | H73: 10 | I73: 18 | K73: 10 | L73: 18 | N73: 10 | O73: 18
E74: 10 | F74: 80 | H74: 10 | I74: 80 | K74: 10 | L74: 80 | N74: 10 | O74: 80
E75: 10 | F75: 100 | H75: =IF(H35>0,10,0) -> 10 | I75: =H35*I35 -> 100 | K75: =IF(K35>0,10,0) -> 10 | L75: =K35*L35 -> 100 | N75: =IF(N35>0,10,0) -> 10 | O75: =N35*O35 -> 100
E76: 10 | F76: 54 | H76: 10 | I76: 54 | K76: 10 | L76: 54 | N76: 10 | O76: 54
E77: 10 | F77: 80 | H77: 10 | I77: 80 | K77: 10 | L77: 80 | N77: 10 | O77: 80
E78: 0 | F78: 0 | H78: 0 | I78: 0 | K78: 0 | L78: 0 | N78: 0 | O78: 0
E79: 0 | F79: 0 | H79: 0 | I79: 0 | K79: 0 | L79: 0 | N79: 0 | O79: 0
E80: 0 | F80: 0 | H80: 0 | I80: 0 | K80: 0 | L80: 0 | N80: 0 | O80: 0

Sheet Summary Analysis
D8: Comp 1 | F8: Comp 2 | H8: Comp 3 | J8: Comp 4
D9: ='Location Analysis'!E13 -> Hall Office Park II | F9: ='Location Analysis'!H13 -> Legacy Town Center II | H9: ='Location Analysis'!K13 -> One Legacy Circle | J9: ='Location Analysis'!N13 -> The Tennyson
B11: Location Analysis Rating | D11: ='Location Analysis'!F51/SUM('Location Analysis'!E52:E65) -> 5.291666667 | F11: ='Location Analysis'!I51/SUM('Location Analysis'!H52:H65) -> 5.466666667 | H11: ='Location Analysis'!L51/SUM('Location Analysis'!K52:K65) -> 5.416666667 | J11: ='Location Analysis'!O51/SUM('Location Analysis'!N52:N65) -> 5.175
B13: Building Analysis Rating | D13: ='Building Analysis'!F55/SUM('Building Analysis'!E56:E80) -> 6.445454545 | F13: ='Building Analysis'!I55/SUM('Building Analysis'!H56:H80) -> 6.190909091 | H13: ='Building Analysis'!L55/SUM('Building Analysis'!K56:K80) -> 6.181818182 | J13: ='Building Analysis'!O55/SUM('Building Analysis'!N56:N80) -> 6.290909091
B16: Combined Analysis Rating | D16: =D13+D11 -> 11.73712121 | F16: =F13+F11 -> 11.65757576 | H16: =H13+H11 -> 11.59848485 | J16: =J13+J11 -> 11.46590909
